bitfinex/quotes_ETHUSD_20250106
["timestamp","ask_amount","ask_price","bid_price","bid_amount"]
[1736144525943,2.44838,3675.9,3675.2,0.8062]
[1736144526139,2.44838,3675.9,3675.4,0.04135551]
[1736144526359,0.02717797,3675.8,3675.3,0.04140082]
[1736144526539,2.44838,3675.9,3675.3,0.04140082]
[1736144526772,3.73457365,3676.1,3675.2,0.8062]
[1736144527082,6.18282365,3676.1,3675.2,0.8062]
[1736144528346,5.05478776,3676.1,3675.2,0.8062]
[1736144531952,2.44832,3676.0,3675.2,0.8062]
[1736144532096,2.60653776,3676.1,3675.2,0.8062]
[1736144532432,2.44839,3675.9,3675.3,0.04140082]
[1736144532815,2.44839,3675.9,3675.2,0.8062]
[1736144533129,2.44839,3675.9,3675.4,0.04135551]
[1736144533295,2.44839,3675.9,3675.3,0.04140082]
[1736144533495,2.44839,3675.9,3675.2,0.8062]
[1736144533845,2.44839,3675.9,3675.3,0.04140082]
[1736144534063,0.02717797,3675.8,3675.3,0.04140082]
[1736144534245,2.44839,3675.9,3675.2,0.8062]
[1736144534565,5.05478776,3676.1,3675.2,0.8062]
[1736144534748,5.05478776,3676.1,3675.3,0.04140082]
[1736144534947,5.05478776,3676.1,3675.2,0.8062]
[1736144535530,2.60653776,3676.1,3675.2,0.8062]
[1736144535859,2.60653776,3676.1,3675.3,0.0417112]
[1736144536216,2.60653776,3676.1,3675.2,0.8062]
[1736144536683,2.60653776,3676.1,3675.3,0.0417112]
[1736144536975,2.60653776,3676.1,3675.4,0.7545]
[1736144537950,2.60653776,3676.1,3675.5,0.04162058]
[1736144540212,5.05478776,3676.1,3675.5,0.04162058]
[1736144540678,5.05478776,3676.1,3675.4,0.7545]
[1736144541416,2.44825,3676.1,3675.4,0.7545]
[1736144541640,1.12803589,3676.3,3675.4,0.7545]
[1736144542682,1.12803589,3676.3,3675.5,0.04161252]
[1736144542884,1.12803589,3676.3,3675.6,0.7831]
[1736144543692,3.0,3676.5,3675.6,0.7831]
[1736144544390,3.0,3676.5,3675.7,0.04152191]
[1736144544594,5.448,3676.5,3675.6,0.7831]
[1736144544751,2.448,3676.5,3675.6,0.7831]
[1736144544958,2.448,3676.5,3675.7,0.03999828]
[1736144545152,2.448,3676.5,3675.6,0.7831]
[1736144545355,2.44805,3676.4,3675.6,0.7831]
[1736144545572,2.44805,3676.4,3675.7,0.04000232]
[1736144545738,3.37873842,3676.4,3675.7,0.04000232]
[1736144545938,3.37873842,3676.4,3675.6,0.7831]
[1736144546209,5.98527618,3676.4,3675.6,0.7831]
[1736144546342,5.98527618,3676.4,3675.7,0.04000232]
[1736144546577,5.98527618,3676.4,3675.6,0.7831]
[1736144546777,0.02717797,3676.3,3675.6,0.7831]
[1736144547000,5.85589776,3676.1,3675.6,0.7831]
[1736144547511,5.85589776,3676.1,3675.7,0.03997813]
[1736144547897,5.85589776,3676.1,3675.6,0.7831]
[1736144548315,2.44831,3676.0,3675.7,0.03997813]
[1736144548686,2.60653776,3675.8,3674.9,0.772]
[1736144548902,2.60653776,3675.5,3674.9,0.772]
[1736144549209,0.02717797,3675.4,3674.9,0.772]
[1736144549410,2.44885,3675.2,3675.0,0.04039206]
[1736144549731,2.47608797,3675.1,3674.6,0.772]
[1736144549926,2.44891,3675.1,3674.6,0.772]
[1736144550437,2.44891,3675.1,3674.7,0.04071756]
[1736144550895,2.44891,3675.1,3674.6,0.772]
[1736144551290,2.44891,3675.1,3674.7,0.03972587]
[1736144551481,1.12803589,3675.3,3674.7,0.03972587]
[1736144551684,1.12803589,3675.3,3674.6,0.772]
[1736144552435,3.57679589,3675.4,3674.6,0.772]
[1736144553335,3.73457365,3675.5,3674.6,0.772]
[1736144553632,2.44885,3675.2,3674.6,0.772]
[1736144554126,2.44885,3675.2,3674.7,0.03972587]
[1736144555231,2.44885,3675.2,3674.6,0.772]
[1736144555594,2.47609797,3675.1,3674.7,0.03972587]
[1736144555794,2.44892,3675.1,3674.6,0.772]
[1736144556004,2.44892,3675.1,3674.7,0.03972587]
[1736144556335,2.44892,3675.1,3674.6,0.772]
[1736144556632,2.44892,3675.1,3674.7,0.03972587]
[1736144557132,2.44892,3675.1,3674.6,0.772]
[1736144558195,0.9319659,3675.0,3674.6,0.772]
[1736144560015,0.9319659,3675.0,3674.7,0.03972587]
[1736144560728,0.9319659,3675.0,3674.6,0.772]
[1736144561060,1.12803589,3675.2,3674.7,0.03972587]
[1736144561414,1.12803589,3675.2,3674.6,0.772]
[1736144561635,0.9319659,3675.2,3674.6,0.772]
[1736144561833,3.3808059,3675.2,3674.6,0.772]
[1736144563169,0.9319659,3675.1,3674.6,0.772]
[1736144563466,0.9319659,3675.1,3674.7,0.03996765]
[1736144564469,0.9319659,3675.1,3674.6,0.772]
[1736144564833,0.9319659,3675.1,3674.7,0.03996765]
[1736144565030,0.9319659,3675.1,3674.7,0.7666]
[1736144565570,1.12803589,3675.3,3674.7,0.7666]
[1736144566218,0.9319659,3675.4,3674.7,0.7666]
[1736144566219,2.06000179,3675.4,3674.7,0.7666]
[1736144567671,2.06000179,3675.5,3674.7,0.7666]
[1736144568650,2.06000179,3675.5,3674.8,0.7985]
[1736144568832,2.06000179,3675.5,3674.8,0.83837397]
[1736144568833,2.52590462,3675.4,3674.8,0.83837397]
[1736144569952,2.06000179,3675.5,3674.8,0.83837397]
[1736144570523,2.06000179,3675.5,3674.8,0.7985]
[1736144571021,4.50866179,3675.5,3674.8,0.7985]
[1736144571217,4.53589976,3675.4,3674.9,0.03982865]
[1736144571415,2.44878,3675.3,3674.8,0.7985]
[1736144571630,0.02717797,3675.2,3674.8,0.7985]
[1736144572466,3.48552273,3675.2,3674.8,0.7985]
[1736144572956,3.45834476,3675.2,3674.8,0.7985]
[1736144573457,0.02717797,3675.1,3674.8,0.7985]
[1736144573659,3.48552273,3675.1,3674.8,0.7985]
[1736144574362,3.45834476,3675.1,3674.8,0.7985]
[1736144574948,0.9319659,3675.0,3674.8,0.7985]
[1736144576165,2.06000179,3675.1,3674.8,0.7985]
[1736144577166,0.9319659,3675.1,3674.8,0.7985]
[1736144577373,0.9319659,3675.1,3674.9,0.03988104]
[1736144577672,0.9319659,3675.1,3674.8,0.7985]
[1736144578049,0.9319659,3675.1,3674.9,0.0398891]
[1736144578247,1.12803589,3675.2,3674.9,0.0398891]
[1736144578449,1.12803589,3675.2,3674.8,0.7985]
[1736144579378,1.39834389,3675.1,3674.8,0.7985]
[1736144579675,1.39834389,3675.1,3674.9,0.0398891]
[1736144580872,1.12803589,3675.5,3674.9,0.0398891]
[1736144581273,0.02717797,3675.4,3674.8,0.7985]
[1736144581571,3.57669589,3675.5,3674.8,0.7985]
[1736144582074,2.52676466,3675.4,3674.8,0.7985]
[1736144582978,1.12803589,3675.4,3674.8,0.7985]
[1736144584493,1.12803589,3675.4,3675.0,0.7649]
[1736144584966,1.12803589,3675.4,3675.1,0.03966145]
[1736144585190,1.12803589,3675.6,3675.2,0.7649]
[1736144585389,1.12803589,3675.6,3675.3,0.55]
[1736144585603,1.12803589,3675.6,3675.4,0.7649]
[1736144585991,1.12803589,3675.6,3675.5,0.03938351]
[1736144586591,1.12803589,3675.7,3675.5,0.03938351]
[1736144586989,1.12803589,3675.7,3675.4,0.7649]
[1736144587369,4.70432178,3676.1,3675.4,0.7649]
[1736144587370,1.12803589,3675.8,3675.4,0.7649]
[1736144587569,1.12803589,3675.8,3675.5,0.03938351]
[1736144588816,1.39909926,3675.7,3675.5,0.03938351]
[1736144588981,1.39909926,3675.7,3675.3,0.7634]
[1736144589170,1.39909926,3675.7,3675.6,0.0387943]
[1736144589370,1.39909926,3675.7,3675.3,0.7634]
[1736144589578,0.02717797,3675.6,3675.3,0.7634]
[1736144589806,1.12803589,3675.7,3675.3,0.7634]
[1736144590812,2.44845,3675.8,3675.3,0.7634]
[1736144590813,1.12803589,3675.6,3675.3,0.7634]
[1736144592311,1.15521386,3675.6,3675.3,0.7634]
[1736144592971,2.52816257,3675.5,3675.3,0.7634]
[1736144593884,2.52816257,3675.4,3675.3,0.7634]
[1736144594908,2.52816257,3675.5,3675.3,0.7634]
[1736144595612,2.52816257,3675.5,3675.4,35.0]
[1736144595910,1.12803589,3675.5,3675.4,35.03857136]
[1736144596873,2.52920774,3675.5,3675.4,35.03857136]
[1736144597698,4.97784774,3675.5,3675.4,35.03857136]
[1736144597898,5.54186569,3675.5,3675.4,35.03857136]
[1736144598086,5.54186569,3675.5,3675.4,0.03857136]
[1736144598381,5.54186569,3675.5,3675.0,0.7506]
[1736144598584,3.09322569,3675.5,3675.0,0.7506]
[1736144598885,4.20419959,3675.5,3675.0,0.7506]
[1736144599075,4.20419959,3675.5,3675.4,35.0]
[1736144599417,4.20419959,3675.5,3675.4,35.03857136]
[1736144599719,1.86868516,3675.6,3675.4,35.03857136]
[1736144600991,4.03148337,3675.5,3675.4,35.03857136]
[1736144605213,4.20493242,3675.5,3675.4,35.03857136]
[1736144605985,2.33624726,3675.5,3675.4,35.03857136]
[1736144607290,4.20493242,3675.5,3675.4,35.03857136]
[1736144608143,4.20493242,3675.5,3675.4,38.53704728]
[1736144608489,2.33624726,3675.5,3675.4,38.53704728]
[1736144609857,1.13131979,3675.7,3675.4,38.53704728]
[1736144611197,0.9354116,3675.6,3675.4,38.53704728]
[1736144612457,1.13131979,3675.8,3675.4,38.53704728]
[1736144613449,2.33782331,3675.7,3675.4,38.53704728]
[1736144614555,1.13131979,3675.8,3675.4,35.81947136]
[1736144614705,2.33221304,3675.8,3675.4,35.03857136]
[1736144615603,1.13131979,3675.6,3675.4,35.03857136]
[1736144616839,3.4689163,3675.5,3675.4,35.03857136]
[1736144619003,6.46354658,3675.5,3675.4,35.03857136]
[1736144619314,6.46354658,3675.5,3675.4,35.0]
[1736144619803,6.46354658,3675.5,3675.4,35.03856329]
[1736144620539,8.91218658,3675.5,3675.4,0.03856329]
[1736144620717,9.68778658,3675.5,3675.4,0.03856329]
[1736144620912,7.23914658,3675.5,3674.8,0.00273]
[1736144621103,1.17371528,3675.1,3674.8,0.00273]
[1736144621642,1.17371528,3675.1,3674.9,0.03878986]
[1736144621852,1.13096839,3675.0,3674.9,0.03878986]
[1736144622150,1.13096839,3675.0,3674.8,0.00273]
[1736144622318,1.13096839,3675.0,3674.9,35.0]
[1736144622697,1.13096839,3675.0,3674.9,35.03878986]
[1736144622939,1.12769365,3675.0,3674.9,35.03878986]
[1736144624032,3.46615978,3675.0,3674.9,35.03878986]
[1736144625443,6.69072978,3675.0,3674.9,35.03878986]
[1736144626525,9.68763399,3675.0,3674.9,35.03878986]
[1736144627844,7.43156221,3675.0,3674.9,35.03878986]
[1736144628845,4.98259221,3675.0,3674.9,35.03878986]
[1736144629046,5.20587415,3675.0,3674.9,35.03878986]
[1736144629237,5.20587415,3675.0,3674.9,0.03878986]
[1736144629429,5.20587415,3675.0,3674.8,0.00273]
[1736144629815,5.20587415,3675.0,3674.9,35.0]
[1736144630222,5.20587415,3675.0,3674.9,35.03785812]
[1736144630719,7.65484415,3675.0,3674.9,35.03785812]
[1736144632453,8.42894415,3675.0,3674.9,0.03785812]
[1736144632955,2.44904,3674.9,3674.8,0.00273]
[1736144633162,2.47621797,3674.9,3674.8,0.00273]
[1736144633535,0.02717797,3674.9,3673.9,0.8235]
[1736144633741,1.17371528,3674.5,3673.9,0.8235]
[1736144633941,1.17371528,3674.5,3674.0,0.03867708]
[1736144634155,1.17371528,3674.5,3674.1,35.0]
[1736144634549,1.17371528,3674.5,3674.2,0.0385864]
[1736144635063,1.17371528,3674.5,3673.9,0.8235]
[1736144635268,0.93538645,3674.4,3674.3,35.0]
[1736144635565,0.93538645,3674.4,3674.3,35.03867408]
[1736144637177,0.93538645,3674.4,3674.3,35.80837408]
[1736144637468,1.12726063,3674.6,3674.3,35.80837408]
[1736144638760,1.17371528,3674.8,3674.3,35.80837408]
[1736144638930,1.17371528,3674.6,3674.3,35.80837408]
[1736144639136,0.02717797,3674.5,3674.3,35.03867408]
[1736144639837,1.17371528,3674.6,3674.3,35.03867408]
[1736144640261,1.20089325,3674.6,3674.3,35.03867408]
[1736144640479,1.17371528,3674.6,3674.3,35.03867408]
[1736144640685,1.17371528,3674.4,3674.3,35.03867408]
[1736144641442,1.17371528,3674.4,3674.3,0.03867408]
[1736144641752,1.17371528,3674.4,3674.0,0.8076]
[1736144642074,1.17371528,3674.4,3674.1,35.0]
[1736144642276,1.17371528,3674.4,3674.1,35.03888969]
[1736144643034,2.44932,3674.5,3674.1,35.03888969]
[1736144644360,2.44951,3674.2,3674.1,35.03888969]
[1736144644679,1.17371528,3674.3,3674.1,35.03888969]
[1736144645054,3.62319528,3674.3,3674.1,35.03888969]
[1736144648178,2.44951,3674.2,3674.1,0.03888969]
[1736144648356,3.27711,3674.2,3674.1,0.03888969]
[1736144648552,2.44971,3673.9,3673.6,35.0]
[1736144648758,1.17371528,3673.7,3673.6,35.0]
[1736144649682,2.44958,3674.1,3673.6,35.0]
[1736144649683,1.17371528,3673.9,3673.6,35.0]
[1736144652283,1.17371528,3673.9,3673.4,0.7779]
[1736144652660,1.17371528,3674.1,3673.4,0.7779]
[1736144652993,1.17371528,3674.1,3673.5,35.8029]
[1736144653562,3.62321528,3674.3,3673.5,35.8029]
[1736144657902,3.62321528,3674.3,3673.6,0.7858]
[1736144658501,3.62321528,3674.3,3673.7,35.0]
[1736144659498,1.12726063,3674.5,3673.8,0.7813]
[1736144659670,1.12726063,3674.5,3673.8,3.49887592]
[1736144659871,1.20089325,3674.4,3673.8,0.7813]
[1736144660077,3.62309528,3674.4,3673.9,35.0]
[1736144660274,1.17371528,3674.2,3674.0,0.03556415]
[1736144660897,1.17371528,3674.2,3673.8,0.7813]
[1736144661099,2.30097591,3674.6,3673.9,35.0]
[1736144661303,2.30097591,3674.6,3674.0,0.8174]
[1736144661607,1.17371528,3674.4,3674.0,0.8174]
[1736144661808,1.17371528,3674.4,3674.1,0.03548255]
[1736144662107,1.17371528,3674.4,3674.1,35.0]
[1736144662599,1.17371528,3674.4,3674.2,0.03543721]
[1736144662802,4.75028591,3674.6,3674.2,0.03543721]
[1736144663133,4.75028591,3674.6,3674.0,0.8174]
[1736144663342,4.75028591,3674.6,3674.3,35.0]
[1736144663500,2.3302254,3674.5,3674.3,35.0]
[1736144663700,2.3302254,3674.5,3674.4,0.03534654]
[1736144664937,3.45748603,3674.5,3674.4,0.03534654]
[1736144665320,3.45748603,3674.5,3674.0,0.8174]
[1736144665536,3.45748603,3674.5,3674.4,0.03416832]
[1736144665699,3.45748603,3674.5,3674.0,0.8174]
[1736144665900,3.45748603,3674.5,3674.1,0.03430433]
[1736144666136,3.45748603,3674.5,3674.0,0.8174]
[1736144666312,3.45748603,3674.5,3674.1,35.0]
[1736144666516,3.45748603,3674.5,3674.1,35.0341875]
[1736144667803,3.45748603,3674.5,3674.1,35.32919028]
[1736144668003,3.45748603,3674.5,3674.3,1.17371528]
[1736144668231,3.45748603,3674.5,3674.4,0.7695]
[1736144668440,3.45748603,3674.5,3674.4,0.80347092]
[1736144668644,1.12726063,3674.7,3674.4,35.80347092]
[1736144668843,1.12726063,3674.7,3674.4,38.52104684]
[1736144669844,1.69089095,3674.9,3674.4,38.52104684]
[1736144669845,1.12726063,3674.9,3674.4,38.52104684]
[1736144670655,4.75002591,3674.9,3674.4,35.80347092]
[1736144670859,1.17371528,3674.7,3674.4,35.80347092]
[1736144671867,3.45748603,3674.6,3674.4,35.80347092]
[1736144672464,3.62302528,3674.5,3674.4,35.03397092]
[1736144673049,2.44931,3674.5,3674.4,0.03397092]
[1736144673436,2.44931,3674.5,3674.0,35.0]
[1736144673649,4.50866079,3674.5,3674.0,35.0]
[1736144673845,4.50866079,3674.5,3674.1,0.03403444]
[1736144674430,4.50866079,3674.5,3674.2,35.0]
[1736144674948,4.7795954,3674.4,3674.3,0.03397598]
[1736144675126,4.7795954,3674.4,3674.2,35.0]
[1736144675452,4.7795954,3674.4,3674.3,0.03398404]
[1736144675848,4.7795954,3674.4,3674.2,35.0]
[1736144676056,4.7795954,3674.4,3674.3,0.03398404]
[1736144676362,4.7795954,3674.4,3674.2,35.0]
[1736144676363,2.35740337,3674.4,3674.2,35.0]
[1736144676530,2.44944,3674.3,3674.2,35.0]
[1736144677767,8.90257051,3674.3,3674.2,35.0]
[1736144677929,8.90257051,3674.3,3673.6,0.7785]
[1736144680508,2.44955,3674.2,3673.6,0.7785]
[1736144680796,1.12987013,3673.9,3673.6,0.7785]
[1736144681704,2.3302254,3673.8,3673.6,0.7785]
[1736144681911,2.3302254,3673.8,3673.7,0.03444945]
[1736144682521,2.3302254,3673.8,3673.6,0.7785]
[1736144683022,2.3302254,3673.8,3673.7,0.03444945]
[1736144683182,0.93209016,3673.8,3673.7,0.03444945]
[1736144689522,1.12987013,3673.9,3673.7,0.03444945]
[1736144689523,0.93209016,3673.9,3673.7,0.03444945]
[1736144689826,0.93209016,3673.9,3673.6,0.7785]
[1736144690789,0.93209016,3673.8,3673.6,0.7785]
[1736144691289,0.93209016,3673.8,3673.7,0.03367384]
[1736144691519,0.93209016,3673.8,3673.6,0.7785]
[1736144691826,0.93209016,3673.8,3673.7,0.03367384]
[1736144692031,0.93209016,3673.9,3673.7,0.03367384]
[1736144692193,0.93209016,3673.9,3673.6,0.7785]
[1736144693390,0.93209016,3673.9,3673.7,0.03367384]
[1736144694593,0.93209016,3674.0,3673.7,0.03367384]
[1736144695416,0.93209016,3673.9,3673.7,0.03367384]
[1736144696429,2.06196029,3674.0,3673.7,0.03367384]
[1736144697434,0.93209016,3673.9,3673.7,0.03367384]
[1736144699808,2.06196029,3674.0,3673.7,0.03367384]
[1736144700393,2.06196029,3674.0,3673.8,0.7531]
[1736144700655,2.06196029,3674.0,3673.8,1.11034349]
[1736144700832,2.06196029,3674.0,3673.9,0.8254]
[1736144701128,2.06196029,3674.0,3673.9,0.85881795]
[1736144701308,0.93209016,3674.0,3673.9,2.58345365]
[1736144701507,0.93209016,3674.0,3673.9,5.03316365]
[1736144701694,0.93209016,3674.0,3673.9,5.78147002]
[1736144702711,2.81631466,3674.7,3673.9,5.78147002]
[1736144702712,1.12987013,3674.8,3674.0,3.55]
[1736144702904,1.12987013,3674.8,3674.4,0.7634]
[1736144703230,1.12987013,3674.8,3674.5,0.03296061]
[1736144703431,2.30450583,3674.8,3674.5,0.03296061]
[1736144703929,1.6948052,3675.0,3674.5,0.03296061]
[1736144703930,2.30450583,3675.0,3674.5,0.03296061]
[1736144704734,0.02717797,3674.9,3674.5,0.03296061]
[1736144705337,3.4872735,3674.9,3674.5,0.03296061]
[1736144706044,3.46009553,3674.9,3674.5,0.03296061]
[1736144706702,3.46009553,3674.8,3674.5,0.03296061]
[1736144707741,2.3302254,3674.9,3674.5,0.03296061]
[1736144708115,2.3302254,3674.9,3674.6,0.7563]
[1736144709127,2.3302254,3674.9,3674.7,0.03266858]
[1736144709328,1.12987013,3675.2,3674.7,0.03266858]
[1736144709502,1.12987013,3675.2,3674.6,0.7563]
[1736144709810,1.12987013,3675.2,3674.7,0.03266858]
[1736144710002,1.12987013,3675.2,3674.6,0.7563]
[1736144710201,1.12987013,3675.2,3674.8,0.03254674]
[1736144710402,1.12987013,3675.2,3674.6,0.7563]
[1736144710842,1.12987013,3675.2,3674.7,0.0326122]
[1736144711244,1.12987013,3675.2,3674.6,0.7563]
[1736144711540,3.57871013,3675.2,3674.7,0.03217719]
[1736144711734,2.53046517,3675.1,3674.7,0.03217719]
[1736144712042,2.53046517,3675.1,3674.6,0.7563]
[1736144712229,2.53046517,3675.1,3674.8,0.03213187]
[1736144712426,2.53046517,3675.1,3674.6,0.7563]
[1736144712845,2.53046517,3675.1,3674.7,0.03217719]
[1736144713145,2.53046517,3675.0,3674.6,0.7563]
[1736144713620,2.53046517,3675.0,3674.7,0.03217719]
[1736144713820,1.12987013,3675.0,3674.6,0.7563]
[1736144714009,1.12987013,3675.0,3674.8,0.03213187]
[1736144714209,1.12987013,3675.0,3674.7,0.03217719]
[1736144714415,1.12987013,3675.0,3674.6,0.7563]
[1736144714927,1.12987013,3675.0,3674.7,0.03220941]
[1736144715120,3.46230037,3675.1,3674.7,0.03220941]
[1736144715326,3.46230037,3675.1,3674.6,0.7563]
[1736144715719,3.46230037,3675.1,3674.8,35.0]
[1736144716004,2.33243024,3675.1,3674.9,0.03211876]
[1736144718732,3.30334797,3675.0,3674.9,0.03211876]
[1736144718946,3.27617,3675.0,3674.9,0.03211876]
[1736144719111,2.44904,3674.9,3674.1,0.7726]
[1736144720214,2.44904,3674.9,3674.2,35.0]
[1736144720447,2.44904,3674.9,3674.2,35.03134128]
[1736144720951,2.33243024,3674.8,3674.2,35.03134128]
[1736144724338,2.33243024,3674.8,3674.2,2.7489172]
[1736144724637,2.33243024,3674.8,3674.2,0.03134128]
[1736144724843,0.93209016,3674.8,3674.7,35.0]
[1736144725252,0.93209016,3674.8,3674.7,35.03121126]
[1736144726023,2.00132215,3675.0,3674.7,35.03121126]
[1736144727449,2.33376048,3674.9,3674.7,35.03121126]
[1736144728216,2.06226312,3674.9,3674.7,35.03121126]
[1736144729632,3.50798447,3675.0,3674.7,35.03121126]
[1736144730561,0.93350419,3674.9,3674.7,35.03121126]
[1736144731645,2.30288108,3675.0,3674.7,35.03121126]
[1736144732757,2.30288108,3675.0,3674.7,0.03121126]
[1736144732965,2.33405717,3674.9,3674.5,0.7833]
[1736144733154,2.33405717,3674.9,3674.8,35.0]
[1736144733469,2.33405717,3674.9,3674.8,35.03120217]
[1736144734481,3.60239698,3674.9,3674.8,35.03120217]
[1736144734683,6.7223561,3674.9,3674.8,35.03120217]
[1736144735587,7.28840237,3674.9,3674.8,35.03120217]
[1736144737582,7.28840237,3674.9,3674.8,0.03120217]
[1736144737881,6.47790237,3674.9,3674.2,0.7805]
[1736144738080,6.47790237,3674.9,3674.8,35.0]
[1736144738449,6.65096331,3674.9,3674.8,35.03118607]
[1736144739283,4.20192331,3674.9,3674.8,35.03118607]
[1736144739885,2.33405717,3674.9,3674.8,35.03118607]
[1736144741074,4.02878767,3674.9,3674.8,35.03118607]
[1736144741595,7.28772767,3674.9,3674.8,0.03118607]
[1736144741953,2.44918,3674.7,3674.3,35.0]
[1736144742164,3.62330215,3674.7,3674.3,35.0]
[1736144742382,1.17412215,3674.7,3674.4,0.03141974]
[1736144742768,1.17412215,3674.7,3674.2,0.7805]
[1736144742969,1.17412215,3674.7,3674.5,35.0]
[1736144743176,1.17412215,3674.7,3674.6,0.03132908]
[1736144743499,3.62329215,3674.7,3674.6,0.03132908]
[1736144744905,10.09121077,3674.7,3674.6,0.03132908]
[1736144745907,7.64204077,3674.7,3674.6,0.03132908]
[1736144746212,6.46791862,3674.7,3674.6,0.03132908]
[1736144746604,6.46791862,3674.7,3674.2,0.7805]
[1736144746779,6.46791862,3674.7,3674.6,35.0]
[1736144747130,6.46791862,3674.7,3674.6,35.7943]
[1736144747434,2.33730055,3674.7,3674.6,35.8257942]
[1736144749926,3.46843008,3674.7,3674.6,35.8257942]
[1736144752494,0.93492022,3674.7,3674.6,35.8257942]
[1736144752727,0.93492022,3674.7,3674.6,38.54337012]
[1736144754365,1.13112953,3674.8,3674.6,38.54337012]
[1736144754857,2.30525168,3674.9,3674.6,38.54337012]
[1736144755060,2.30525168,3674.9,3674.6,35.8257942]
[1736144755858,1.13112953,3674.7,3674.6,35.8257942]
[1736144756366,2.30525168,3674.7,3674.6,35.0314942]
[1736144756752,1.13112953,3674.7,3674.6,35.0314942]
[1736144756968,3.46942404,3674.7,3674.6,35.0314942]
[1736144758282,2.33829451,3674.7,3674.6,0.0314942]
[1736144758643,2.33829451,3674.7,3674.4,0.7523]
[1736144758949,2.33829451,3674.7,3674.6,35.03126464]
[1736144759160,2.33829451,3674.7,3674.6,35.0]
[1736144759354,2.33829451,3674.7,3674.6,35.03126464]
[1736144761588,2.33829451,3674.7,3674.6,37.74884056]
[1736144761789,3.46915413,3674.7,3674.6,37.74884056]
[1736144763094,2.06617742,3674.7,3674.6,37.74884056]
[1736144764364,2.06617742,3674.7,3674.6,35.03126464]
[1736144764576,3.46915413,3674.7,3674.6,35.03126464]
[1736144766564,3.46915413,3674.7,3674.6,41.85370464]
[1736144767315,1.86999183,3675.0,3674.6,41.85370464]
[1736144767316,2.06617742,3674.8,3674.7,3.55]
[1736144767613,2.06617742,3674.8,3674.7,3.76227]
[1736144767763,2.06617742,3674.8,3674.7,4.17168929]
[1736144767965,2.06617742,3674.8,3674.7,42.17168929]
[1736144768399,2.06617742,3674.8,3674.7,39.72251929]
[1736144768604,2.06617742,3674.8,3674.7,39.17251929]
[1736144768899,1.17412215,3675.3,3674.7,39.17251929]
[1736144769111,1.17412215,3675.1,3674.7,39.17251929]
[1736144770706,1.17412215,3675.1,3674.7,38.79316583]
[1736144771110,1.13085962,3675.3,3674.7,38.79316583]
[1736144771908,1.13085962,3675.3,3674.7,35.79316583]
[1736144772128,2.06507584,3675.3,3674.7,35.79316583]
[1736144773127,0.02717797,3675.2,3674.7,35.79316583]
[1736144773286,2.06507584,3675.3,3674.7,35.79316583]
[1736144773287,7.11517057,3675.3,3674.7,35.79316583]
[1736144773488,0.02717797,3675.2,3674.7,35.03006583]
[1736144773916,7.11517057,3675.3,3674.7,35.03006583]
[1736144774113,1.13085962,3675.0,3674.7,35.03006583]
[1736144775224,2.06507584,3675.0,3674.7,35.03006583]
[1736144776433,2.06507584,3675.0,3674.7,0.03006583]
[1736144776633,4.6491372,3674.9,3674.7,0.03006583]
[1736144776828,4.6491372,3674.9,3674.2,0.7559]
[1736144777029,4.6491372,3674.9,3674.3,35.0]
[1736144777204,2.60131473,3674.5,3674.3,35.0]
[1736144777411,3.24887,3674.4,3674.3,35.0]
[1736144778328,0.7995,3674.4,3673.5,1.89249074]
[1736144778538,2.44946,3674.3,3673.5,1.89249074]
[1736144778835,2.44946,3674.3,3673.9,35.0]
[1736144779052,7.26213497,3674.4,3673.9,35.0]
[1736144779730,2.60131473,3674.2,3673.9,35.0]
[1736144780029,1.1290151,3674.1,3674.0,0.02850624]
[1736144780918,3.46381852,3674.1,3674.0,0.02850624]
[1736144782157,2.33480342,3674.1,3674.0,0.02850624]
[1736144783302,3.46381852,3674.1,3674.0,0.02850624]
[1736144783838,3.46381852,3674.1,3673.9,35.0]
[1736144783839,3.46381852,3674.1,3673.5,0.7559]
[1736144784002,3.46381852,3674.1,3674.0,0.02810719]
[1736144784202,3.46381852,3674.1,3673.5,0.7559]
[1736144784617,3.46381852,3674.1,3673.6,0.02828859]
[1736144784911,3.46381852,3674.1,3674.0,35.0]
[1736144785326,3.46381852,3674.1,3674.0,35.02810776]
[1736144785913,0.93421622,3674.2,3674.0,35.02810776]
[1736144787345,0.93421622,3674.2,3674.0,35.80530776]
[1736144788446,0.93421622,3674.2,3674.0,38.52288368]
[1736144788747,0.93421622,3674.2,3674.1,0.7772]
[1736144789247,0.93421622,3674.2,3674.1,0.80413547]
[1736144789837,1.1290151,3674.9,3674.1,0.80413547]
[1736144790647,1.1290151,3674.9,3674.1,0.83134959]
[1736144790949,1.39842876,3674.8,3674.2,2.71757592]
[1736144791148,1.39842876,3674.8,3674.3,0.8001]
[1736144791350,1.39842876,3674.8,3674.3,0.8269448]
[1736144792126,1.1290151,3674.9,3674.4,35.0]
[1736144792540,1.1290151,3674.9,3674.5,0.02675413]
[1736144793137,1.1290151,3674.8,3674.6,35.0]
[1736144793341,1.1290151,3674.8,3674.6,35.0264591]
[1736144794523,1.39855031,3674.7,3674.6,35.0264591]
[1736144795113,1.39855031,3674.7,3674.6,35.56297512]
[1736144795309,1.39855031,3674.7,3674.6,36.35177512]
[1736144795538,1.39855031,3674.7,3674.6,35.8152591]
[1736144795739,0.93228584,3674.9,3674.6,35.8152591]
[1736144796114,0.93228584,3674.9,3674.6,35.0264591]
[1736144796944,3.45993817,3675.0,3674.6,35.0264591]
[1736144798294,2.06130094,3675.1,3674.6,35.0264591]
[1736144798416,2.06130094,3675.1,3674.7,0.7956]
[1736144798615,2.06130094,3675.1,3674.7,0.82151441]
[1736144799754,2.06130094,3675.1,3674.8,35.0]
[1736144800257,2.06130094,3675.1,3674.9,0.02583987]
[1736144800615,0.93228584,3675.2,3674.7,0.7956]
[1736144800822,0.93228584,3675.2,3674.8,35.0]
[1736144801260,0.93228584,3675.2,3674.9,0.0257835]
[1736144801626,0.93228584,3675.2,3674.7,0.7956]
[1736144801962,2.52442313,3675.2,3675.0,35.0]
[1736144802361,2.52442313,3675.2,3675.1,0.02569286]
[1736144802562,2.52442313,3675.2,3675.1,2.74326878]
[1736144803280,1.39868411,3675.2,3675.1,2.74326878]
[1736144804860,4.0244926,3675.6,3675.1,2.74326878]
[1736144805661,4.0244926,3675.6,3674.7,0.7956]
[1736144805864,4.0244926,3675.6,3674.8,35.0]
[1736144806161,2.33096995,3675.6,3674.8,35.02757022]
[1736144807375,1.39868411,3675.5,3674.8,35.02757022]
[1736144807530,1.39868411,3675.5,3674.9,0.7667]
[1736144807730,1.39868411,3675.5,3675.0,2.71757592]
[1736144808062,1.39868411,3675.5,3675.0,0.02560131]